bitfinex-derivatives/quotes_BTCF0:USTF0_20240925
["timestamp","ask_amount","ask_price","bid_price","bid_amount"]
[1727290397399,0.3608,63417.0,63416.0,0.078848]
[1727290397697,0.078849,63416.0,63414.0,0.002]
[1727290397997,0.258849,63415.0,63414.0,0.002]
[1727290398388,0.258849,63415.0,63414.0,0.001]
[1727290399996,0.258849,63415.0,63414.0,0.04800178]
[1727290399997,0.078849,63415.0,63414.0,0.04800178]
[1727290400190,0.258849,63415.0,63414.0,0.002]
[1727290402597,0.337698,63415.0,63414.0,0.002]
[1727290402795,0.258849,63415.0,63414.0,0.002]
[1727290403195,0.258849,63415.0,63413.0,0.06268897]
[1727290403196,0.07885,63414.0,63413.0,0.06268897]
[1727290404491,0.07885,63414.0,63413.0,0.06368897]
[1727290404896,0.07885,63414.0,63413.0,0.06468897]
[1727290405095,0.07885,63414.0,63413.0,0.002]
[1727290405294,0.1577,63414.0,63413.0,0.06467528]
[1727290405603,1.23078,63414.0,63413.0,0.06467528]
[1727290405897,1.23078,63414.0,63405.0,0.0037]
[1727290405898,0.07886,63406.0,63405.0,0.0037]
[1727290406095,0.07886,63406.0,63401.0,0.078866]
[1727290406096,0.5408,63406.0,63401.0,0.078866]
[1727290406300,0.619661,63406.0,63401.0,0.078866]
[1727290406800,0.3608,63406.0,63396.0,0.3645]
[1727290407101,0.3608,63406.0,63405.0,0.078862]
[1727290407490,0.7216,63406.0,63405.0,0.078862]
[1727290408391,0.3608,63406.0,63405.0,0.078862]
[1727290408989,0.18,63411.0,63407.0,0.078859]
[1727290409193,0.258855,63411.0,63407.0,0.078859]
[1727290409894,0.078856,63410.0,63407.0,0.078859]
[1727290411598,0.18,63409.0,63407.0,0.078859]
[1727290411804,0.18,63409.0,63408.0,0.078858]
[1727290413007,0.181,63409.0,63408.0,0.078858]
[1727290414408,0.181,63409.0,63408.0,0.14153328]
[1727290414996,0.181,63409.0,63408.0,0.078858]
[1727290416102,0.181,63409.0,63407.0,0.06267528]
[1727290416295,0.001,63409.0,63408.0,0.078858]
[1727290416889,0.38856341,63411.0,63410.0,0.078855]
[1727290417289,0.38856341,63411.0,63410.0,0.19596571]
[1727290417494,0.38856341,63411.0,63410.0,0.2742475]
[1727290417695,0.38856341,63411.0,63410.0,0.15718511]
[1727290417900,0.38856341,63411.0,63410.0,0.078855]
[1727290418096,0.38956341,63411.0,63410.0,0.27534047]
[1727290419302,0.38956341,63411.0,63410.0,0.15819586]
[1727290419709,0.38856341,63411.0,63410.0,0.15819586]
[1727290419912,0.38856341,63411.0,63410.0,0.15719586]
[1727290420208,0.38856341,63411.0,63410.0,0.078855]
[1727290421299,0.38856341,63411.0,63410.0,0.3386868]
[1727290423106,0.38856341,63411.0,63410.0,0.143255]
[1727290423898,0.078837,63425.0,63419.0,0.078844]
[1727290424098,0.18,63421.0,63419.0,0.3608]
[1727290424300,0.078843,63420.0,63419.0,0.3608]
[1727290425010,0.0326,63424.0,63419.0,0.3608]
[1727290425205,0.0326,63424.0,63420.0,0.06263069]
[1727290425406,0.18,63421.0,63420.0,0.06263069]
[1727290426014,0.18,63421.0,63417.0,0.06263069]
[1727290426218,0.18,63421.0,63415.0,0.078848]
[1727290426219,0.18,63421.0,63418.0,0.06263069]
[1727290427307,0.078843,63420.0,63419.0,0.001]
[1727290427501,0.258843,63420.0,63419.0,0.001]
[1727290428913,0.66805086,63420.0,63419.0,0.002]
[1727290429810,0.66805086,63420.0,63419.0,0.001]
[1727290431000,0.74689386,63420.0,63419.0,0.001]
[1727290431200,0.74689386,63420.0,63406.0,0.39566571]
[1727290431201,0.078844,63419.0,63406.0,0.36316571]
[1727290431402,0.18,63410.0,63406.0,0.36440571]
[1727290431612,0.18,63410.0,63406.0,0.36316571]
[1727290432208,0.0623,63412.0,63406.0,0.36316571]
[1727290432407,0.5416,63413.0,63410.0,0.078855]
[1727290432713,0.5408,63413.0,63410.0,0.078855]
[1727290432916,0.3608,63413.0,63410.0,0.078855]
[1727290434111,0.3618,63413.0,63410.0,0.078855]
[1727290434612,0.3628,63413.0,63410.0,0.078855]
[1727290434809,0.3638,63413.0,63410.0,0.078855]
[1727290435116,0.3638,63413.0,63406.0,0.08122571]
[1727290435612,0.258856,63410.0,63406.0,0.08122571]
[1727290436009,0.258856,63410.0,63408.0,0.06263069]
[1727290436411,0.258856,63410.0,63406.0,0.15951511]
[1727290436607,0.078857,63409.0,63408.0,0.06261552]
[1727290436916,0.078857,63409.0,63406.0,0.00236571]
[1727290438018,0.080857,63409.0,63406.0,0.00236571]
[1727290439313,0.080857,63409.0,63407.0,0.06263005]
[1727290439515,0.080857,63409.0,63406.0,0.00236571]
[1727290441811,0.080857,63409.0,63408.0,0.06263561]
[1727290442116,0.080857,63409.0,63406.0,0.00236571]
[1727290442518,0.002,63409.0,63405.0,0.0782894]
[1727290442716,0.25886,63406.0,63405.0,0.06265379]
[1727290443014,0.25886,63406.0,63400.0,0.1571564]
[1727290443015,0.078864,63403.0,63400.0,0.078867]
[1727290443215,0.18,63401.0,63400.0,0.078867]
[1727290444309,0.5408,63401.0,63400.0,0.080867]
[1727290444822,0.5408,63401.0,63400.0,0.078867]
[1727290445021,0.619667,63401.0,63400.0,0.002]
[1727290445915,0.619667,63401.0,63400.0,0.004]
[1727290448120,0.698534,63401.0,63400.0,0.004]
[1727290448321,0.078875,63395.0,63392.0,0.0037]
[1727290448524,0.18,63393.0,63389.0,0.078881]
[1727290449411,0.2116,63393.0,63389.0,0.078881]
[1727290449610,0.2116,63393.0,63392.0,0.01]
[1727290449822,0.2116,63393.0,63392.0,0.02]
[1727290450327,0.2116,63393.0,63389.0,0.104881]
[1727290450620,0.0316,63393.0,63389.0,0.104881]
[1727290450820,0.0316,63393.0,63392.0,0.01]
[1727290451022,0.0316,63393.0,63392.0,0.05699279]
[1727290451423,0.0611,63394.0,63393.0,0.078877]
[1727290451817,0.0301,63394.0,63393.0,0.078877]
[1727290452723,0.0279564,63401.0,63393.0,0.18]
[1727290452923,0.18,63412.0,63393.0,0.18]
[1727290452924,0.0037,63408.0,63407.0,0.078859]
[1727290453224,0.078854,63412.0,63407.0,0.439659]
[1727290453418,0.078854,63412.0,63408.0,0.04689796]
[1727290454425,0.110609,63412.0,63407.0,0.12575696]
[1727290454725,0.110609,63412.0,63408.0,0.04689796]
[1727290454930,0.031755,63412.0,63408.0,0.12575496]
[1727290455226,0.031755,63412.0,63409.0,0.04689796]
[1727290455727,0.034755,63412.0,63409.0,0.04689796]
[1727290455923,0.031755,63412.0,63409.0,0.04689796]
[1727290456127,0.034755,63412.0,63409.0,0.04689796]
[1727290456319,0.034755,63412.0,63409.0,0.04789796]
[1727290456727,0.031755,63412.0,63409.0,0.001]
[1727290456919,0.078855,63410.0,63409.0,0.002]
[1727290458828,0.081855,63410.0,63409.0,0.002]
[1727290459233,0.084855,63410.0,63409.0,0.002]
[1727290459422,0.006,63410.0,63409.0,0.441657]
[1727290460519,0.006,63410.0,63409.0,0.080857]
[1727290460717,0.006,63410.0,63409.0,0.002]
[1727290460718,0.186,63410.0,63409.0,0.002]
[1727290461832,0.264855,63410.0,63409.0,0.002]
[1727290462025,0.264855,63410.0,63401.0,0.0037]
[1727290462026,0.078861,63406.0,63401.0,0.0037]
[1727290462225,0.18,63402.0,63398.0,0.078869]
[1727290462430,0.18,63402.0,63394.0,0.0037]
[1727290462726,0.18,63398.0,63397.0,0.078872]
[1727290463630,0.439665,63403.0,63397.0,0.078872]
[1727290463631,0.078865,63402.0,63397.0,0.078872]
[1727290463834,0.18,63398.0,63397.0,0.083872]
[1727290464025,0.18,63398.0,63397.0,0.005]
[1727290464227,0.3608,63403.0,63397.0,0.005]
[1727290464428,0.18,63398.0,63397.0,0.005]
[1727290465324,0.18,63398.0,63397.0,0.009]
[1727290466133,0.22842208,63398.0,63397.0,0.009]
[1727290469730,0.22842144,63398.0,63397.0,0.009]
[1727290472237,0.18,63398.0,63397.0,0.009]
[1727290472628,0.22842154,63398.0,63397.0,0.009]
[1727290472824,0.18,63398.0,63397.0,0.009]
[1727290476027,0.25887,63398.0,63397.0,0.009]
[1727290476841,0.07887,63398.0,63397.0,0.009]
[1727290477037,0.25887,63398.0,63397.0,0.009]
[1727290486648,0.18,63398.0,63397.0,0.009]
[1727290488750,0.32317,63398.0,63397.0,0.009]
[1727290490344,0.32317,63398.0,63397.0,0.07153061]
[1727290490345,0.2443,63398.0,63397.0,0.07153061]
[1727290490947,0.0643,63398.0,63397.0,0.087872]
[1727290491248,0.3608,63401.0,63399.0,0.078868]
[1727290491450,0.3608,63401.0,63400.0,0.06273998]
[1727290491750,0.18,63402.0,63400.0,0.078868]
[1727290492044,0.18,63402.0,63398.0,0.0782894]
[1727290492246,0.18,63402.0,63399.0,0.0782894]
[1727290492449,0.118,63400.0,63399.0,0.0782894]
[1727290492648,0.118,63400.0,63398.0,0.07887]
[1727290492649,0.078869,63399.0,63398.0,0.0782894]
[1727290492845,0.078869,63399.0,63397.0,0.4430894]
[1727290493046,0.07887,63398.0,63397.0,0.4430894]
[1727290493242,0.07887,63398.0,63397.0,0.3648]
[1727290493447,0.07487,63398.0,63397.0,0.3648]
[1727290494452,0.25487,63398.0,63397.0,0.004]
[1727290495057,0.178,63398.0,63394.0,0.0782894]
[1727290495441,0.25687,63398.0,63397.0,0.005]
[1727290495847,0.25687,63398.0,63397.0,0.009]
[1727290496046,0.25787,63398.0,63397.0,0.004]
[1727290496242,0.078872,63397.0,63394.0,0.0862894]
[1727290496451,0.078872,63397.0,63394.0,0.0942894]
[1727290496749,0.078874,63395.0,63394.0,0.0942894]
[1727290496949,0.069874,63395.0,63394.0,0.19592601]
[1727290497153,0.11829918,63395.0,63391.0,0.440918]
[1727290497348,0.18,63392.0,63388.0,0.078883]
[1727290497656,0.18,63392.0,63383.0,0.0037]
[1727290497657,0.04842549,63391.0,63383.0,0.0037]
[1727290497851,0.18,63388.0,63387.0,0.078884]
[1727290498651,0.173,63388.0,63387.0,0.078884]
[1727290499052,0.166,63388.0,63387.0,0.078884]
[1727290499555,0.29431093,63388.0,63387.0,0.01]
[1727290499743,0.29531093,63388.0,63387.0,0.024]
[1727290501258,0.29531228,63388.0,63387.0,0.024]
[1727290501456,0.246883,63388.0,63387.0,0.024]
[1727290502657,0.29531233,63388.0,63387.0,0.024]
[1727290502857,0.12931233,63388.0,63387.0,0.024]
[1727290503049,0.30931233,63388.0,63387.0,0.024]
[1727290503355,0.38819533,63388.0,63387.0,0.024]
[1727290503862,0.41619649,63388.0,63387.0,0.024]
[1727290504252,0.36776716,63388.0,63387.0,0.07106563]
[1727290504447,0.36676716,63388.0,63387.0,0.06006563]
[1727290504761,0.36576716,63388.0,63387.0,0.05406563]
[1727290505157,0.36576716,63388.0,63387.0,0.007]
[1727290505359,1.28128116,63388.0,63383.0,0.06275417]
[1727290505659,1.28128116,63388.0,63379.0,0.0037]
[1727290505660,0.078893,63380.0,63379.0,0.0037]
[1727290505853,0.078896,63377.0,63374.0,0.06275417]
[1727290506056,0.078896,63377.0,63375.0,0.06275417]
[1727290506250,0.18,63376.0,63374.0,0.06275417]
[1727290506452,0.071896,63377.0,63374.0,0.06275417]
[1727290507161,0.073896,63377.0,63373.0,0.06275417]
[1727290507566,0.18,63374.0,63373.0,0.06275417]
[1727290507863,0.073896,63377.0,63373.0,0.06275417]
[1727290508059,0.18,63375.0,63373.0,0.06275417]
[1727290508265,0.18,63375.0,63372.0,0.50245617]
[1727290508851,0.18,63375.0,63373.0,0.06275417]
[1727290509266,0.18,63375.0,63372.0,0.50245617]
[1727290509960,0.18,63375.0,63372.0,0.078902]
[1727290509961,0.002,63374.0,63372.0,0.078902]
[1727290510362,0.18,63375.0,63372.0,0.078902]
[1727290510560,0.181,63375.0,63372.0,0.078902]
[1727290511362,0.18,63373.0,63371.0,0.00124]
[1727290511672,0.18,63373.0,63370.0,0.00236704]
[1727290512356,0.078904,63371.0,63370.0,0.00236704]
[1727290512556,0.078909,63367.0,63365.0,0.3608]
[1727290512761,0.18,63366.0,63365.0,0.3608]
[1727290512955,0.078903,63372.0,63366.0,0.078909]
[1727290513266,0.18,63369.0,63366.0,0.078909]
[1727290514062,0.18,63369.0,63367.0,0.078909]
[1727290514353,0.178,63369.0,63367.0,0.078909]
[1727290514864,0.179,63369.0,63367.0,0.078909]
[1727290515072,0.18,63369.0,63367.0,0.078909]
[1727290515770,0.179,63369.0,63367.0,0.078909]
[1727290515964,0.18,63369.0,63367.0,0.080909]
[1727290516362,0.179,63369.0,63367.0,0.080909]
[1727290518470,0.20706589,63369.0,63367.0,0.080909]
[1727290520265,0.12,63368.0,63367.0,0.080909]
[1727290520466,0.12,63368.0,63367.0,0.002]
[1727290521367,0.12,63368.0,63367.0,0.001]
[1727290521684,0.121,63368.0,63367.0,0.001]
[1727290526974,0.001,63368.0,63367.0,0.079909]
[1727290527276,0.001,63368.0,63367.0,0.199909]
[1727290527662,0.001,63368.0,63367.0,0.261709]
[1727290529576,0.079908,63368.0,63367.0,0.001]
[1727290529880,0.230508,63368.0,63367.0,0.001]
[1727290531282,0.15895286,63368.0,63367.0,0.001]
[1727290531479,0.27895286,63368.0,63367.0,0.001]
[1727290531684,0.20004486,63368.0,63367.0,0.001]
[1727290532482,0.26004486,63368.0,63367.0,0.001]
[1727290534383,0.2116,63368.0,63367.0,0.001]
[1727290534786,0.2116,63368.0,63367.0,0.079909]
[1727290541080,0.2116,63368.0,63367.0,0.15839068]
[1727290541285,0.2116,63368.0,63367.0,0.19751633]
[1727290541877,0.2116,63368.0,63367.0,0.11903465]
[1727290542983,0.2116,63368.0,63367.0,0.11904914]
[1727290544206,0.290508,63368.0,63367.0,0.11904914]
[1727290545383,0.2116,63368.0,63367.0,0.11904914]
[1727290546798,0.2116,63368.0,63367.0,0.19760696]
[1727290547092,0.2116,63368.0,63367.0,0.11904914]
[1727290549294,0.290508,63368.0,63367.0,0.001]
[1727290549793,0.321608,63368.0,63367.0,0.001]
[1727290551090,0.354508,63368.0,63367.0,0.001]
[1727290551599,0.40295626,63368.0,63367.0,0.001]
[1727290551896,0.078912,63365.0,63360.0,0.082617]
[1727290552091,0.18,63361.0,63360.0,0.078917]
[1727290552289,0.18,63361.0,63355.0,0.3608]
[1727290552290,0.18,63361.0,63357.0,0.078921]
[1727290553094,0.18,63361.0,63355.0,0.3608]
[1727290553392,0.080916,63361.0,63360.0,0.001]
[1727290553895,0.159832,63361.0,63360.0,0.001]
[1727290554084,0.20828806,63361.0,63360.0,0.001]
[1727290554284,0.38728806,63361.0,63360.0,0.001]
[1727290554497,0.38828806,63361.0,63360.0,0.001]
[1727290555487,0.30937206,63361.0,63352.0,0.00606759]
[1727290555689,0.18,63353.0,63352.0,0.00236759]
[1727290555885,0.258926,63353.0,63352.0,0.00236759]
[1727290557085,0.258926,63353.0,63352.0,0.06515708]
[1727290557491,0.258926,63353.0,63352.0,0.00236759]
[1727290557701,0.258926,63353.0,63349.0,0.06278949]
[1727290557990,0.097,63356.0,63349.0,0.06278949]
[1727290557991,0.61973,63350.0,63349.0,0.06278949]
[1727290558295,0.1007,63356.0,63349.0,0.18]
[1727290558296,0.097,63356.0,63349.0,0.18]
[1727290558489,0.12,63355.0,63351.0,0.18277387]
[1727290558796,0.12,63355.0,63352.0,0.06277387]
[1727290559206,0.12,63355.0,63351.0,0.18277387]
[1727290559396,0.12,63352.0,63351.0,0.06277387]
[1727290559596,0.11857736,63352.0,63351.0,0.06277387]
[1727290559992,0.198924,63355.0,63351.0,0.14170287]
[1727290560395,0.078924,63355.0,63351.0,0.14170287]
[1727290560993,0.09186896,63356.0,63353.0,0.078925]
[1727290561201,0.09186896,63356.0,63348.0,0.44067725]
[1727290561202,0.02796896,63356.0,63355.0,0.078924]
[1727290561402,0.0008,63357.0,63356.0,0.078923]
[1727290561589,0.078915,63362.0,63360.0,0.078917]
[1727290561986,0.3608,63364.0,63363.0,0.078914]
[1727290562296,0.0037,63368.0,63367.0,0.078909]
[1727290562497,0.0008,63372.0,63370.0,0.078905]
[1727290562689,0.258899,63376.0,63370.0,0.14162497]
[1727290562888,0.078899,63376.0,63372.0,0.42351997]
[1727290563100,0.078899,63376.0,63371.0,0.06271997]
[1727290563308,0.258899,63376.0,63371.0,0.06271997]
[1727290563603,0.078901,63374.0,63371.0,0.06271997]
[1727290564207,0.078901,63374.0,63368.0,0.078907]
[1727290564208,0.04844058,63373.0,63368.0,0.078907]
[1727290564393,0.04844058,63372.0,63368.0,0.078907]
[1727290564588,0.04844058,63371.0,63368.0,0.078907]
[1727290564797,0.04844058,63370.0,63368.0,0.078907]
[1727290564988,0.078901,63374.0,63368.0,0.078907]
[1727290565201,0.0484402,63373.0,63368.0,0.078907]
[1727290565398,0.0484402,63372.0,63368.0,0.078907]
[1727290565702,0.0484402,63371.0,63368.0,0.078907]
[1727290566602,0.0484402,63370.0,63368.0,0.078907]
[1727290566802,0.003,63371.0,63368.0,0.078907]
[1727290567005,0.04844004,63370.0,63368.0,0.078907]
[1727290567200,0.04844004,63369.0,63368.0,0.078907]
[1727290567498,0.04844004,63369.0,63367.0,0.3608]
[1727290567691,0.078905,63370.0,63367.0,0.3608]
[1727290567896,0.04844042,63369.0,63367.0,0.3608]
[1727290568104,0.078905,63370.0,63367.0,0.3608]
[1727290568302,0.04844043,63369.0,63367.0,0.3608]
[1727290568503,0.078905,63370.0,63367.0,0.3608]
[1727290568703,0.005,63371.0,63367.0,0.3608]
[1727290568704,0.12734739,63369.0,63367.0,0.3608]
[1727290568908,0.078907,63369.0,63367.0,0.3608]
[1727290569208,0.079907,63369.0,63367.0,0.3608]
[1727290569398,0.082907,63369.0,63367.0,0.3608]
[1727290569597,0.04844227,63368.0,63366.0,0.3608]
[1727290569797,0.078908,63368.0,63366.0,0.3608]
[1727290570700,0.079908,63368.0,63366.0,0.3608]
[1727290571594,0.079908,63368.0,63365.0,0.07891]
[1727290571799,0.04844547,63367.0,63364.0,0.0325]
[1727290572005,0.078911,63365.0,63364.0,0.0325]
[1727290572207,0.078915,63362.0,63361.0,0.06271997]
[1727290572506,0.18,63361.0,63359.0,0.3608]
[1727290572898,0.078918,63360.0,63359.0,0.3608]
[1727290573810,0.078918,63360.0,63358.0,0.07892]
[1727290574718,0.078918,63360.0,63358.0,0.43972]
[1727290576303,0.078919,63359.0,63358.0,0.3608]
[1727290578702,0.078919,63359.0,63357.0,0.00236747]
[1727290579614,0.5416,63361.0,63357.0,0.00236747]
[1727290579615,0.07892,63358.0,63357.0,0.00236747]
[1727290581015,0.15784,63358.0,63357.0,0.00236747]
[1727290582324,0.33784,63358.0,63357.0,0.00236747]
[1727290583111,0.33784,63358.0,63350.0,0.0037]
[1727290583112,0.078928,63352.0,63350.0,0.0037]
[1727290583312,0.078931,63349.0,63346.0,0.0628068]
[1727290583519,0.078931,63349.0,63344.0,0.0628068]
[1727290584020,0.078931,63349.0,63345.0,0.0628068]
[1727290584211,0.078933,63348.0,63345.0,0.0628068]
[1727290584407,0.18,63347.0,63345.0,0.0628068]
[1727290584919,0.18,63347.0,63344.0,0.0628068]
[1727290585419,0.078933,63348.0,63345.0,0.0628068]
[1727290585605,0.001,63349.0,63345.0,0.0628068]
[1727290586318,0.002,63349.0,63345.0,0.0628068]
[1727290586510,0.002,63349.0,63344.0,0.1417438]
[1727290586710,0.001,63347.0,63344.0,0.1417438]
[1727290587116,0.001,63347.0,63344.0,0.078937]
[1727290587523,0.260931,63349.0,63344.0,0.078937]
[1727290588313,0.28905602,63349.0,63343.0,0.3608]
[1727290588923,0.28905602,63349.0,63346.0,0.078935]
[1727290589519,0.078933,63348.0,63346.0,0.078935]
[1727290589919,0.001,63347.0,63346.0,0.078935]
[1727290591621,0.078933,63348.0,63346.0,0.078935]
[1727290591826,0.001,63347.0,63346.0,0.078935]
[1727290592023,0.002,63347.0,63346.0,0.078935]
[1727290592727,0.079933,63348.0,63346.0,0.078935]
[1727290592923,0.080933,63348.0,63346.0,0.078935]
[1727290593718,0.078934,63347.0,63346.0,0.078935]
[1727290594527,0.080934,63347.0,63346.0,0.078935]
[1727290597531,0.080934,63347.0,63343.0,0.3608]
[1727290597532,0.078938,63344.0,63343.0,0.3608]
[1727290597726,0.258938,63344.0,63343.0,0.3608]
[1727290598521,0.198938,63344.0,63343.0,0.3608]
[1727290598817,0.199938,63344.0,63343.0,0.3608]
[1727290599028,0.200938,63344.0,63343.0,0.3608]
[1727290600514,0.260938,63344.0,63343.0,0.3608]
[1727290603523,0.002,63344.0,63343.0,0.3608]
[1727290603823,0.002,63344.0,63343.0,0.469939]
[1727290604020,0.02812502,63349.0,63348.0,0.078933]
[1727290604325,0.078926,63354.0,63348.0,0.18]
[1727290604631,0.0037,63356.0,63352.0,0.3608]
[1727290604632,0.078926,63353.0,63352.0,0.3608]
[1727290605127,0.078926,63353.0,63351.0,0.078929]
[1727290605520,0.078923,63356.0,63351.0,0.078929]
[1727290605832,0.04845504,63355.0,63351.0,0.078929]
[1727290606035,0.04845504,63354.0,63351.0,0.078929]
[1727290606332,0.04845504,63354.0,63349.0,0.3608]
[1727290606333,0.04845504,63353.0,63352.0,0.078928]
[1727290607826,0.077928,63352.0,63351.0,0.001]
[1727290608032,0.077928,63352.0,63348.0,0.439732]
[1727290608033,0.07893,63351.0,63348.0,0.439732]
[1727290608331,0.18,63349.0,63348.0,0.439732]
[1727290608521,0.22845504,63349.0,63348.0,0.439732]
[1727290609029,0.30538604,63349.0,63348.0,0.3608]
[1727290609331,0.258931,63349.0,63348.0,0.3648]
[1727290610229,0.258931,63349.0,63348.0,0.004]
[1727290610631,0.258931,63349.0,63348.0,0.008]
[1727290610833,0.258931,63349.0,63348.0,0.004]
[1727290611031,0.258931,63349.0,63348.0,0.008]
[1727290611925,0.337862,63349.0,63348.0,0.008]
[1727290615337,0.36613266,63349.0,63348.0,0.008]
[1727290616420,0.07894,63342.0,63340.0,0.0665068]
[1727290616618,0.0623,63341.0,63340.0,0.0628068]
[1727290617329,0.2423,63341.0,63338.0,0.078945]
[1727290617626,0.2423,63341.0,63340.0,0.017]
[1727290618226,0.2433,63341.0,63340.0,0.017]
[1727290620532,0.2433,63341.0,63340.0,0.01]
[1727290620830,0.323241,63341.0,63340.0,0.01]
[1727290621227,0.402182,63341.0,63340.0,0.01]
[1727290621741,0.504041,63341.0,63340.0,0.01]
[1727290621929,0.323241,63341.0,63340.0,0.01]
[1727290622127,0.2443,63341.0,63340.0,0.01]
[1727290622437,0.323241,63341.0,63340.0,0.01]
[1727290623428,0.322241,63341.0,63340.0,0.01]
[1727290623635,0.324241,63341.0,63340.0,0.01]
[1727290624039,0.326241,63341.0,63335.0,0.44335737]
[1727290624337,0.18,63336.0,63335.0,0.44211737]
[1727290624531,0.17494835,63341.0,63336.0,0.078947]
[1727290624834,0.18,63337.0,63336.0,0.15761205]
[1727290625035,0.18,63337.0,63336.0,0.19902514]
[1727290625339,0.18,63337.0,63336.0,0.27768249]
[1727290625523,0.18,63337.0,63336.0,0.27767952]
[1727290625724,0.18,63337.0,63336.0,0.27967952]
[1727290627238,0.18,63337.0,63336.0,0.082947]
[1727290627537,0.18,63337.0,63336.0,0.16160138]
[1727290627741,0.18,63337.0,63336.0,0.28131575]
[1727290627932,0.18,63340.0,63338.0,0.078944]
[1727290628132,0.18,63340.0,63336.0,0.20236875]
[1727290628133,0.09100735,63341.0,63339.0,0.078943]
[1727290628438,0.09100735,63341.0,63340.0,0.0629057]
[1727290629244,0.09100735,63341.0,63340.0,0.078943]
[1727290629444,0.09100735,63341.0,63340.0,0.1418487]
[1727290630032,0.16994835,63341.0,63340.0,0.0629057]
[1727290630942,0.09100735,63341.0,63340.0,0.0629057]
[1727290631136,0.09400735,63341.0,63340.0,0.1418487]
[1727290631337,0.09600735,63341.0,63340.0,0.1418487]
[1727290631845,0.005,63341.0,63340.0,0.631526]
[1727290632040,0.0037,63345.0,63344.0,0.078938]
[1727290632345,0.0037,63350.0,63349.0,0.078931]
[1727290632538,0.0037,63350.0,63349.0,0.14177812]
[1727290632847,0.18,63350.0,63349.0,0.14177812]
[1727290633438,0.18,63350.0,63349.0,0.078931]
[1727290634145,0.5408,63350.0,63349.0,0.078931]
[1727290634446,0.5468,63350.0,63349.0,0.04814563]
[1727290634642,0.5468,63350.0,63349.0,0.04814671]
[1727290634951,0.5768623,63350.0,63349.0,0.04814671]
[1727290635151,0.5858623,63350.0,63349.0,0.002]
[1727290635445,0.5858623,63350.0,63349.0,0.04914671]
[1727290636342,0.9466623,63350.0,63349.0,0.04914671]
[1727290636539,1.0255923,63350.0,63349.0,0.002]
[1727290637055,1.1045223,63350.0,63349.0,0.002]
[1727290637440,2.0202223,63350.0,63345.0,0.04714671]
[1727290637752,0.157872,63345.0,63344.0,0.04714671]
[1727290637947,0.078936,63345.0,63342.0,0.04719191]
[1727290638139,0.07894,63342.0,63341.0,0.04719191]
[1727290639353,0.30740745,63342.0,63335.0,0.3645]
[1727290639557,0.04846745,63341.0,63335.0,0.3608]
[1727290639847,0.04846745,63340.0,63335.0,0.3608]
[1727290640040,0.04846745,63339.0,63335.0,0.3608]
[1727290640239,0.04846745,63338.0,63335.0,0.3608]
[1727290640441,0.04846745,63337.0,63335.0,0.3608]
[1727290640642,0.04846745,63336.0,63335.0,0.439749]
[1727290640839,0.04846745,63336.0,63335.0,0.442749]
[1727290641245,0.04846745,63336.0,63335.0,0.445749]
[1727290641547,0.04846745,63336.0,63335.0,0.442749]
[1727290641767,0.04846745,63336.0,63335.0,0.445749]
[1727290643151,0.24150063,63344.0,63335.0,0.84048]
[1727290643355,0.04846462,63343.0,63342.0,0.07894]
[1727290644662,0.05246462,63343.0,63342.0,0.07894]
[1727290645050,0.05746462,63343.0,63342.0,0.43974]
[1727290646058,0.05746462,63343.0,63342.0,0.07894]
[1727290646359,0.05746462,63343.0,63342.0,0.43974]
[1727290647349,0.009,63343.0,63342.0,0.63804379]
[1727290647752,0.009,63343.0,63342.0,0.73233033]
[1727290648052,0.009,63343.0,63342.0,0.65339033]
[1727290648357,0.009,63343.0,63342.0,0.55910379]
[1727290648553,0.009,63343.0,63342.0,0.19830379]
[1727290648750,0.009,63343.0,63342.0,0.55910379]
[1727290650344,0.009,63343.0,63342.0,0.65339033]
[1727290651353,0.009,63343.0,63342.0,0.19830379]
[1727290652253,0.087939,63343.0,63342.0,0.27692244]
[1727290652455,0.087939,63343.0,63342.0,0.07894]
[1727290652967,0.006,63343.0,63342.0,0.07894]
[1727290653256,0.078941,63341.0,63340.0,0.07861865]
[1727290653558,0.258941,63341.0,63339.0,0.078943]
[1727290653754,0.258941,63341.0,63340.0,0.06291721]
[1727290654058,0.258941,63341.0,63339.0,0.078943]
[1727290654250,0.18,63341.0,63340.0,0.0629149]
[1727290654555,0.23146647,63341.0,63339.0,0.078943]
[1727290654746,0.04846647,63340.0,63339.0,0.078943]
[1727290656554,0.04946647,63340.0,63339.0,0.078943]
[1727290657262,0.05046647,63340.0,63339.0,0.078943]
[1727290657949,0.05046647,63340.0,63336.0,0.3608]
[1727290658149,0.18,63337.0,63336.0,0.3608]
[1727290658355,0.22846647,63337.0,63336.0,0.3608]
[1727290658750,0.22846647,63337.0,63336.0,0.439747]
[1727290659263,0.18,63337.0,63336.0,0.439747]
[1727290659560,0.22846506,63337.0,63336.0,0.439747]
[1727290659862,0.22846506,63337.0,63336.0,0.443747]
[1727290660453,0.22846506,63337.0,63336.0,0.3648]
[1727290661149,0.22846721,63337.0,63336.0,0.3648]
[1727290662358,0.18,63337.0,63336.0,0.48456307]
[1727290662559,0.18,63337.0,63336.0,0.56351007]
[1727290662758,0.02813859,63341.0,63336.0,0.48456307]
[1727290662958,0.18,63339.0,63338.0,0.07870388]
[1727290663169,0.10691895,63342.0,63338.0,0.277393]
[1727290663364,0.18,63339.0,63338.0,0.15764788]
[1727290663670,0.18,63339.0,63338.0,0.2773923]
[1727290664162,0.3608,63344.0,63341.0,0.07894]
[1727290664163,0.18,63342.0,63341.0,0.07894]